lending/lending_fUSD_20240507
["ID","MTS","AMOUNT","RATE_DAILY","PERIOD"]
[326561321,1715109069105,-660.56,0.0002,2]
[326561322,1715109069115,-622.4,0.0002,2]
[326561323,1715109069124,-9068.98,0.0002,2]
[326561324,1715109069134,-500.0,0.0002,2]
[326561325,1715109069143,-975.09,0.0002,2]
[326561326,1715109069153,-7823.11,0.0002,2]
[326561327,1715109069162,-2517.85,0.0002,2]
[326561328,1715109069172,-3443.28,0.0002,2]
[326561329,1715109069181,-500.0,0.0002,2]
[326561330,1715109069191,-500.0,0.0002,2]
[326561331,1715109069202,-626.56,0.0002,2]
[326561332,1715109069211,-500.0,0.0002,2]
[326561333,1715109069221,-500.0,0.0002,2]
[326561334,1715109069230,-731.11,0.0002,2]
[326561335,1715109069239,-3016.05,0.0002,2]
[326561336,1715109069249,-500.0,0.0002,2]
[326561337,1715109069259,-544.82,0.0002,2]
[326561338,1715109069268,-500.0,0.0002,2]
[326561339,1715109069278,-862.97,0.0002,2]
[326561340,1715109069288,-1652.38,0.0002,2]
[326561341,1715109069297,-2159.29,0.0002,2]
[326561342,1715109069306,-500.0,0.0002,2]
[326561343,1715109069316,-669.45,0.0002,2]
[326561344,1715109069325,-1098.34,0.0002,2]
[326561345,1715109069335,-500.0,0.0002,2]
[326561346,1715109069345,-500.0,0.0002,2]
[326561347,1715109069354,-500.0,0.0002,2]
[326561348,1715109069364,-500.0,0.0002,2]
[326561349,1715109069373,-541.77,0.0002,2]
[326561350,1715109069382,-500.0,0.0002,2]
[326561351,1715109069391,-558.7,0.0002,2]
[326561352,1715109069401,-640.04,0.0002,2]
[326561353,1715109069410,-626.2,0.0002,2]
[326561354,1715109069419,-848.65,0.0002,2]
[326561355,1715109069429,-1005.88,0.0002,2]
[326561356,1715109069438,-13278.13,0.0002,2]
[326561357,1715109069448,-500.0,0.0002,2]
[326561358,1715109069458,-1307.7,0.0002,2]
[326561359,1715109069467,-500.0,0.0002,2]
[326561360,1715109069477,-500.0,0.0002,2]
[326561361,1715109069486,-783.4,0.0002,2]
[326561362,1715109069496,-593.67,0.0002,2]
[326561363,1715109069506,-500.0,0.0002,2]
[326561364,1715109069515,-858.71,0.0002,2]
[326561365,1715109069525,-811.78,0.0002,2]
[326561366,1715109069535,-500.0,0.0002,2]
[326561367,1715109069544,-500.0,0.0002,2]
[326561368,1715109069554,-2207.78,0.0002,2]
[326561369,1715109069563,-500.0,0.0002,2]
[326561370,1715109069572,-581.24,0.0002,2]
[326561371,1715109069582,-775.24,0.0002,2]
[326561372,1715109069592,-500.0,0.0002,2]
[326561373,1715109069604,-681.51,0.0002,2]
[326561374,1715109069615,-500.0,0.0002,2]
[326561375,1715109069624,-500.0,0.0002,2]
[326561376,1715109069633,-1322.4,0.0002,2]
[326561377,1715109069643,-500.0,0.0002,2]
[326561378,1715109069653,-1309.95,0.0002,2]
[326561379,1715109069662,-500.0,0.0002,2]
[326561380,1715109069671,-500.0,0.0002,2]
[326561381,1715109069683,-1656.54,0.0002,2]
[326561382,1715109069692,-913.41,0.0002,2]
[326561383,1715109069703,-500.0,0.0002,2]
[326561384,1715109069713,-1016.48,0.0002,2]
[326561385,1715109069722,-500.0,0.0002,2]
[326561386,1715109069731,-2525.7,0.0002,2]
[326561387,1715109069742,-500.0,0.0002,2]
[326561388,1715109069752,-500.0,0.0002,2]
[326561389,1715109069762,-1488.9,0.0002,2]
[326561390,1715109069772,-590.94,0.0002,2]
[326561391,1715109069782,-2176.15,0.0002,2]
[326561392,1715109069794,-500.0,0.0002,2]
[326561393,1715109069804,-1089.01,0.0002,2]
[326561394,1715109069815,-934.18,0.0002,2]
[326561395,1715109069824,-500.0,0.0002,2]
[326561396,1715109069834,-1223.92,0.0002,2]
[326561397,1715109069845,-502.60989518,0.0002,2]
[326561398,1715109069854,-589.37,0.0002,2]
[326561399,1715109069864,-500.0,0.0002,2]
[326561400,1715109069874,-702.3,0.0002,2]
[326561401,1715109069883,-1123.02,0.0002,2]
[326561402,1715109069894,-500.0,0.0002,2]
[326561403,1715109069904,-500.0,0.0002,2]
[326561404,1715109069914,-500.0,0.0002,2]
[326561405,1715109069923,-1456.17,0.0002,2]
[326561406,1715109069933,-1023.26,0.0002,2]
[326561407,1715109069942,-1294.89,0.0002,2]
[326561408,1715109069952,-2029.34,0.0002,2]
[326561409,1715109069961,-500.0,0.0002,2]
[326561410,1715109069971,-958.06,0.0002,2]
[326561411,1715109069980,-3031.7,0.0002,2]
[326561412,1715109069990,-500.0,0.0002,2]
[326561413,1715109069999,-500.0,0.0002,2]
[326561414,1715109070009,-1797.85,0.0002,2]
[326561415,1715109070019,-500.0,0.0002,2]
[326561416,1715109070028,-500.0,0.0002,2]
[326561417,1715109070038,-500.0,0.0002,2]
[326561418,1715109070048,-2598.21,0.0002,2]
[326561419,1715109070058,-2329.42,0.0002,2]
[326561420,1715109070069,-639.23,0.0002,2]
[326561421,1715109070079,-867.36,0.0002,2]
[326561422,1715109070089,-500.0,0.0002,2]
[326561423,1715109070099,-1368.28,0.0002,2]
[326561424,1715109070109,-1447.62,0.0002,2]
[326561425,1715109070119,-1495.07,0.0002,2]
[326561426,1715109070130,-500.0,0.0002,2]
[326561427,1715109070140,-2090.62,0.0002,2]
[326561428,1715109070150,-1247.39,0.0002,2]
[326561429,1715109070160,-500.0,0.0002,2]
[326561430,1715109070170,-500.0,0.0002,2]
[326561431,1715109070180,-609.28,0.0002,2]
[326561432,1715109070189,-500.0,0.0002,2]
[326561433,1715109070199,-576.38,0.0002,2]
[326561434,1715109070209,-1469.01,0.0002,2]
[326561435,1715109070219,-4236.16,0.0002,2]
[326561436,1715109070229,-500.0,0.0002,2]
[326561437,1715109070239,-1443.45,0.0002,2]
[326561438,1715109070248,-952.68,0.0002,2]
[326561439,1715109070259,-500.0,0.0002,2]
[326561440,1715109070269,-525.41,0.0002,2]
[326561441,1715109070279,-4439.92,0.0002,2]
[326561442,1715109070290,-4763.7,0.0002,2]
[326561443,1715109070300,-690.08,0.0002,2]
[326561444,1715109070311,-500.0,0.0002,2]
[326561445,1715109070321,-584.26405,0.0002,2]
[326561446,1715109070331,-3213.53,0.0002,2]
[326561447,1715109070340,-920.02,0.0002,2]
[326561448,1715109070350,-2058.55,0.0002,2]
[326561449,1715109070359,-500.0,0.0002,2]
[326561450,1715109070369,-1807.87,0.0002,2]
[326561451,1715109070379,-2904.15,0.0002,2]
[326561452,1715109070389,-737.92,0.0002,2]
[326561453,1715109070399,-500.0,0.0002,2]
[326561454,1715109070409,-919.82,0.0002,2]
[326561455,1715109070419,-2336.73,0.0002,2]
[326561456,1715109070430,-3045.65,0.0002,2]
[326561457,1715109070440,-1092.73,0.0002,2]
[326561458,1715109070450,-1691.25,0.0002,2]
[326561459,1715109070460,-2696.59,0.0002,2]
[326561460,1715109070470,-1026.13,0.0002,2]
[326561461,1715109070480,-543.72,0.0002,2]
[326561462,1715109070490,-2744.29,0.0002,2]
[326561463,1715109070500,-1345.09,0.0002,2]
[326561464,1715109070509,-3663.09,0.0002,2]
[326561465,1715109070519,-571.79,0.0002,2]
[326561466,1715109070529,-554.62,0.0002,2]
[326561467,1715109070539,-2041.82,0.0002,2]
[326561468,1715109070550,-150.0,0.0002,2]
[326561469,1715109070560,-281.0,0.00020243,15]
[326561470,1715109070570,-6839.16668298,0.00020253,2]
[326561471,1715109070579,-150.5,0.00020253,15]
[326561472,1715109070590,-427.72367538,0.00020261,2]
[326561473,1715109070600,-150.5,0.00020263,15]
[326561474,1715109070614,-156.08637497,0.00020271,2]
[326561475,1715109070624,-265.77308436,0.00020271,2]
[326561476,1715109070634,-177.54622384,0.00020271,2]
[326561477,1715109070644,-782.13638794,0.00020271,2]
[326561478,1715109070654,-155.86350893,0.00020272,2]
[326561479,1715109070664,-11103.78837456,0.00020272,2]
[326561480,1715109070673,-500.0,0.00020273,2]
[326561481,1715109070683,-500.0,0.00020273,2]
[326561482,1715109070697,-500.0,0.00020273,2]
[326561483,1715109070708,-500.0,0.00020273,2]
[326561484,1715109070719,-500.0,0.00020273,2]
[326561485,1715109070729,-616.55,0.00020273,2]
[326561486,1715109070739,-293.91268682,0.00020273,2]
[326561487,1715109070749,-609.92,0.00020273,2]
[326561488,1715109070760,-528.98,0.00020273,2]
[326561489,1715109070770,-637.67,0.00020273,2]
[326561490,1715109070779,-500.0,0.00020273,2]
[326561491,1715109070791,-961.86,0.00020273,2]
[326561492,1715109070802,-500.0,0.00020273,2]
[326561493,1715109070812,-516.31,0.00020273,2]
[326561494,1715109070822,-500.0,0.00020273,2]
[326561495,1715109070831,-500.0,0.00020273,2]
[326561496,1715109070841,-500.0,0.00020273,2]
[326561497,1715109070850,-500.0,0.00020273,2]
[326561498,1715109070860,-500.0,0.00020273,2]
[326561499,1715109070870,-500.0,0.00020273,2]
[326561500,1715109070880,-500.0,0.00020273,2]
[326561501,1715109070890,-500.0,0.00020273,2]
[326561502,1715109070899,-500.0,0.00020273,2]
[326561503,1715109070909,-500.0,0.00020273,2]
[326561504,1715109070919,-500.0,0.00020273,2]
[326561505,1715109070929,-500.0,0.00020273,2]
[326561506,1715109070939,-500.0,0.00020273,2]
[326561507,1715109070948,-500.0,0.00020273,2]
[326561508,1715109070959,-500.0,0.00020273,2]
[326561509,1715109070969,-500.0,0.00020273,2]
[326561510,1715109070979,-500.0,0.00020273,2]
[326561511,1715109070988,-500.0,0.00020273,2]
[326561512,1715109070998,-500.0,0.00020273,2]
[326561513,1715109071010,-500.0,0.00020273,2]
[326561514,1715109071021,-500.0,0.00020273,2]
[326561515,1715109071032,-500.0,0.00020273,2]
[326561516,1715109071042,-511.83,0.00020273,2]
[326561517,1715109071053,-640.82,0.00020273,2]
[326561518,1715109071063,-1296.96,0.00020273,2]
[326561519,1715109071073,-1039.89,0.00020273,2]
[326561520,1715109071084,-500.0,0.00020273,2]
[326561521,1715109071094,-1344.86,0.00020273,2]
[326561522,1715109071104,-510.16,0.00020273,2]
[326561523,1715109071114,-500.0,0.00020273,2]
[326561524,1715109071124,-500.0,0.00020273,2]
[326561525,1715109071135,-500.0,0.00020273,2]
[326561526,1715109071145,-500.0,0.00020273,2]
[326561527,1715109071155,-1140.53,0.00020273,2]
[326561528,1715109071165,-500.0,0.00020273,2]
[326561529,1715109071176,-500.0,0.00020273,2]
[326561530,1715109071186,-548.18,0.00020273,2]
[326561531,1715109071197,-500.0,0.00020273,2]
[326561532,1715109071207,-909.34,0.00020273,2]
[326561533,1715109071217,-500.0,0.00020273,2]
[326561534,1715109071226,-500.0,0.00020273,2]
[326561535,1715109071236,-500.0,0.00020273,2]
[326561536,1715109071246,-500.0,0.00020273,2]
[326561537,1715109071257,-587.62,0.00020273,2]
[326561538,1715109071266,-500.0,0.00020273,2]
[326561539,1715109071277,-500.0,0.00020273,2]
[326561540,1715109071287,-737.75,0.00020273,2]
[326561541,1715109071296,-500.0,0.00020273,2]
[326561542,1715109071306,-500.0,0.00020273,2]
[326561543,1715109071316,-500.0,0.00020273,2]
[326561544,1715109071326,-965.36,0.00020273,2]
[326561545,1715109071336,-500.0,0.00020273,2]
[326561546,1715109071346,-500.0,0.00020273,2]
[326561547,1715109071356,-500.0,0.00020273,2]
[326561548,1715109071365,-500.0,0.00020273,2]
[326561549,1715109071376,-500.0,0.00020273,2]
[326561550,1715109071385,-1277.92,0.00020273,2]
[326561551,1715109071395,-772.42,0.00020273,2]
[326561552,1715109071405,-500.0,0.00020273,2]
[326561553,1715109071415,-500.0,0.00020273,2]
[326561554,1715109071425,-854.42,0.00020273,2]
[326561555,1715109071435,-634.37,0.00020273,2]
[326561556,1715109071445,-518.82,0.00020273,2]
[326561557,1715109071455,-834.2,0.00020273,2]
[326561558,1715109071465,-500.0,0.00020273,2]
[326561559,1715109071475,-500.0,0.00020273,2]
[326561560,1715109071485,-500.0,0.00020273,2]
[326561561,1715109071494,-559.02,0.00020273,2]
[326561562,1715109071504,-500.0,0.00020273,2]
[326561563,1715109071513,-1295.25,0.00020273,2]
[326561564,1715109071523,-500.0,0.00020273,2]
[326561565,1715109071533,-1379.17,0.00020273,2]
[326561566,1715109071543,-500.0,0.00020273,2]
[326561567,1715109071553,-500.0,0.00020273,2]
[326561568,1715109071563,-756.88,0.00020273,2]
[326561569,1715109071573,-1051.91,0.00020273,2]
[326561570,1715109071583,-605.72,0.00020273,2]
[326561571,1715109071593,-500.0,0.00020273,2]
[326561572,1715109071607,-500.0,0.00020273,2]
[326561573,1715109071617,-500.0,0.00020273,2]
[326561574,1715109071628,-1384.39,0.00020273,2]
[326561575,1715109071640,-500.0,0.00020273,2]
[326561576,1715109071654,-830.22,0.00020273,2]
[326561577,1715109071664,-500.0,0.00020273,2]
[326561578,1715109071675,-504.54,0.00020273,2]
[326561579,1715109071686,-675.32,0.00020273,2]
[326561580,1715109071696,-500.0,0.00020273,2]
[326561581,1715109071706,-849.26,0.00020273,2]
[326561582,1715109071716,-964.69,0.00020273,2]
[326561583,1715109071726,-500.0,0.00020273,2]
[326561584,1715109071736,-500.0,0.00020273,2]
[326561585,1715109071745,-775.4,0.00020273,2]
[326561586,1715109071756,-500.0,0.00020273,2]
[326561587,1715109071766,-642.62,0.00020273,2]
[326561588,1715109071776,-500.0,0.00020273,2]
[326561589,1715109071788,-1511.31,0.00020273,2]
[326561590,1715109071798,-500.0,0.00020273,2]
[326561591,1715109071809,-777.92,0.00020273,2]
[326561592,1715109071818,-1094.98,0.00020273,2]
[326561593,1715109071828,-751.54,0.00020273,2]
[326561594,1715109071838,-500.0,0.00020273,2]
[326561595,1715109071847,-500.0,0.00020273,2]
[326561596,1715109071857,-529.2,0.00020273,2]
[326561597,1715109071867,-824.9,0.00020273,2]
[326561598,1715109071877,-500.0,0.00020273,2]
[326561599,1715109071887,-500.0,0.00020273,2]
[326561600,1715109071896,-500.0,0.00020273,2]
[326561601,1715109071906,-740.96,0.00020273,2]
[326561602,1715109071916,-500.0,0.00020273,2]
[326561603,1715109071926,-500.0,0.00020273,2]
[326561604,1715109071936,-1194.81,0.00020273,2]
[326561605,1715109071946,-500.0,0.00020273,2]
[326561606,1715109071955,-500.0,0.00020273,2]
[326561607,1715109071965,-665.48,0.00020273,2]
[326561608,1715109071976,-500.0,0.00020273,2]
[326561609,1715109071986,-712.08,0.00020273,2]
[326561610,1715109071996,-500.0,0.00020273,2]
[326561611,1715109072006,-1308.28,0.00020273,2]
[326561612,1715109072016,-500.0,0.00020273,2]
[326561613,1715109072026,-500.0,0.00020273,2]
[326561614,1715109072036,-531.86,0.00020273,2]
[326561615,1715109072046,-661.12,0.00020273,2]
[326561616,1715109072056,-500.0,0.00020273,2]
[326561617,1715109072067,-618.82336144,0.00020273,2]
[326561618,1715109072077,-500.0,0.00020273,2]
[326561619,1715109072087,-500.0,0.00020273,2]
[326561620,1715109072097,-1409.45,0.00020273,2]
[326561621,1715109072107,-500.0,0.00020273,2]
[326561622,1715109072117,-500.0,0.00020273,2]
[326561623,1715109072127,-500.0,0.00020273,2]
[326561624,1715109072137,-500.0,0.00020273,2]
[326561625,1715109072148,-1020.83,0.00020273,2]
[326561626,1715109072158,-500.0,0.00020273,2]
[326561627,1715109072168,-500.0,0.00020273,2]
[326561628,1715109072178,-500.0,0.00020273,2]
[326561629,1715109072188,-500.0,0.00020273,2]
[326561630,1715109072198,-167.36230916,0.00020273,2]
[326561631,1715109072208,-1414.86,0.00020273,2]
[326561632,1715109072219,-273.59956713,0.00020273,2]
[326561633,1715109072229,-500.0,0.00020273,2]
[326561634,1715109072239,-500.0,0.00020273,2]
[326561635,1715109072248,-500.0,0.00020273,2]
[326561636,1715109072259,-731.07,0.00020273,2]
[326561637,1715109072269,-500.0,0.00020273,2]
[326561638,1715109072279,-500.0,0.00020273,2]
[326561639,1715109072289,-711.26,0.00020273,2]
[326561640,1715109072298,-500.0,0.00020273,2]
[326561641,1715109072308,-1013.61,0.00020273,2]
[326561642,1715109072318,-500.0,0.00020273,2]
[326561643,1715109072328,-500.0,0.00020273,2]
[326561644,1715109072338,-500.0,0.00020273,2]
[326561645,1715109072347,-500.0,0.00020273,2]
[326561646,1715109072357,-500.0,0.00020273,2]
[326561647,1715109072367,-735.22,0.00020273,2]
[326561648,1715109072377,-500.0,0.00020273,2]
[326561649,1715109072387,-1169.14,0.00020273,2]
[326561650,1715109072397,-544.24,0.00020273,2]
[326561651,1715109072407,-1704.43,0.00020273,2]
[326561652,1715109072417,-500.0,0.00020273,2]
[326561653,1715109072427,-500.0,0.00020273,2]
[326561654,1715109072437,-527.82123539,0.00020273,2]
[326561655,1715109072447,-283.55692126,0.00020273,2]
[326561656,1715109072457,-538.08,0.00020273,2]
[326561657,1715109072467,-500.0,0.00020273,2]
[326561658,1715109072477,-557.71,0.00020273,2]
[326561659,1715109072486,-500.0,0.00020273,2]
[326561660,1715109072496,-850.54,0.00020273,2]
[326561661,1715109072506,-515.72807742,0.00020273,2]
[326561662,1715109072516,-500.0,0.00020273,2]
[326561663,1715109072527,-500.0,0.00020273,2]
[326561664,1715109072538,-949.21,0.00020273,2]
[326561665,1715109072548,-500.0,0.00020273,2]
[326561666,1715109072559,-500.0,0.00020273,2]
[326561667,1715109072570,-500.0,0.00020273,2]
[326561668,1715109072580,-4821.02,0.00020273,2]
[326561669,1715109072591,-718.44,0.00020273,2]
[326561670,1715109072603,-500.0,0.00020273,2]
[326561671,1715109072616,-1209.89,0.00020273,2]
[326561672,1715109072627,-521.54,0.00020273,2]
[326561673,1715109072637,-500.0,0.00020273,2]
[326561674,1715109072647,-717.93,0.00020273,2]
[326561675,1715109072657,-213.75742572,0.00020273,2]
[326561676,1715109072668,-500.0,0.00020273,2]
[326561677,1715109072679,-500.0,0.00020273,2]
[326561678,1715109072691,-500.0,0.00020273,2]
[326561679,1715109072703,-500.0,0.00020273,2]
[326561680,1715109072713,-533.96,0.00020273,2]
[326561681,1715109072723,-928.47,0.00020273,2]
[326561682,1715109072733,-532.62,0.00020273,2]
[326561683,1715109072743,-857.36,0.00020273,2]
[326561684,1715109072754,-2333.84,0.00020273,2]
[326561685,1715109072764,-678.25,0.00020273,2]
[326561686,1715109072774,-1851.61,0.00020273,2]
[326561687,1715109072785,-563.87,0.00020273,2]
[326561688,1715109072796,-500.0,0.00020273,2]
[326561689,1715109072807,-547.36,0.00020273,2]
[326561690,1715109072817,-753.1,0.00020273,2]
[326561691,1715109072827,-500.0,0.00020273,2]
[326561692,1715109072837,-500.0,0.00020273,2]
[326561693,1715109072848,-500.0,0.00020273,2]
[326561694,1715109072858,-500.0,0.00020273,2]
[326561695,1715109072869,-1246.61,0.00020273,2]
[326561696,1715109072879,-1396.46,0.00020273,2]
[326561697,1715109072889,-523.32,0.00020273,2]
[326561698,1715109072899,-1222.09,0.00020273,2]
[326561699,1715109072909,-1051.16,0.00020273,2]
[326561700,1715109072920,-500.0,0.00020273,2]
[326561701,1715109072930,-500.0,0.00020273,2]
[326561702,1715109072940,-1099.92,0.00020273,2]
[326561703,1715109072949,-3883.49,0.00020273,2]
[326561704,1715109072960,-500.0,0.00020273,2]
[326561705,1715109072970,-500.0,0.00020273,2]
[326561706,1715109072980,-500.0,0.00020273,2]
[326561707,1715109072990,-500.0,0.00020273,2]
[326561708,1715109073000,-500.0,0.00020273,2]
[326561709,1715109073012,-500.0,0.00020273,2]
[326561710,1715109073022,-500.0,0.00020273,2]
[326561711,1715109073032,-798.3,0.00020273,2]
[326561712,1715109073042,-500.0,0.00020273,2]
[326561713,1715109073052,-500.0,0.00020273,2]
[326561714,1715109073062,-1024.08,0.00020273,2]
[326561715,1715109073072,-500.0,0.00020273,2]
[326561716,1715109073082,-500.0,0.00020273,2]
[326561717,1715109073092,-572.78,0.00020273,2]
[326561718,1715109073103,-500.0,0.00020273,2]
[326561719,1715109073113,-3726.27,0.00020273,2]
[326561720,1715109073124,-500.0,0.00020273,2]
[326561721,1715109073134,-500.0,0.00020273,2]
[326561722,1715109073145,-500.0,0.00020273,2]
[326561723,1715109073156,-500.0,0.00020273,2]
[326561724,1715109073166,-500.0,0.00020273,2]
[326561725,1715109073177,-500.0,0.00020273,2]
[326561726,1715109073187,-1075.66,0.00020273,2]
[326561727,1715109073197,-500.0,0.00020273,2]
[326561728,1715109073207,-1074.47,0.00020273,2]
[326561729,1715109073218,-614.33,0.00020273,2]
[326561730,1715109073409,-1390.99,0.00020273,2]
[326561731,1715109073443,-500.0,0.00020273,2]
[326561732,1715109073453,-1067.93,0.00020273,2]
[326561733,1715109073463,-500.0,0.00020273,2]
[326561734,1715109073472,-828.77,0.00020273,2]
[326561735,1715109073482,-931.21,0.00020273,2]
[326561736,1715109073491,-500.0,0.00020273,2]
[326561737,1715109073501,-263.71880219,0.00020273,2]
[326561738,1715109073515,-500.0,0.00020273,2]
[326561739,1715109073529,-500.0,0.00020273,2]
[326561740,1715109073539,-500.57,0.00020273,2]
[326561741,1715109073550,-500.0,0.00020273,2]
[326561742,1715109073560,-500.0,0.00020273,2]
[326561743,1715109073570,-544.9,0.00020273,2]
[326561744,1715109073579,-500.0,0.00020273,2]
[326561745,1715109073589,-793.32,0.00020273,2]
[326561746,1715109073600,-500.0,0.00020273,2]
[326561747,1715109073614,-1001.63,0.00020273,2]
[326561748,1715109073624,-500.0,0.00020273,2]
[326561749,1715109073634,-659.12,0.00020273,2]
[326561750,1715109073644,-500.0,0.00020273,2]
[326561751,1715109073654,-876.42,0.00020273,2]
[326561752,1715109073664,-500.0,0.00020273,2]
[326561753,1715109073673,-500.0,0.00020273,2]
[326561754,1715109073684,-383.54659705,0.00020273,2]
[326561755,1715109073694,-500.0,0.00020273,2]
[326561756,1715109073704,-500.0,0.00020273,2]
[326561757,1715109073714,-1592.65,0.00020273,2]
[326561758,1715109073723,-1382.91,0.00020273,2]
[326561759,1715109073733,-575.18,0.00020273,2]
[326561760,1715109073742,-676.71,0.00020273,2]
[326561761,1715109073752,-677.53,0.00020273,2]
[326561762,1715109073765,-500.0,0.00020273,2]
[326561763,1715109073775,-892.36,0.00020273,2]
[326561764,1715109073785,-500.0,0.00020273,2]
[326561765,1715109073797,-372.36758965,0.00020273,2]
[326561766,1715109073807,-809.83,0.00020273,2]
[326561767,1715109073817,-798.52,0.00020273,2]
[326561768,1715109073826,-500.0,0.00020273,2]
[326561769,1715109073837,-398.5007594,0.00020273,2]
[326561770,1715109073847,-540.05,0.00020273,2]
[326561771,1715109073858,-500.0,0.00020273,2]
[326561772,1715109073868,-712.06,0.00020273,2]
[326561773,1715109073879,-2338.12,0.00020273,2]
[326561774,1715109073889,-627.88,0.00020273,2]
[326561775,1715109073900,-582.92,0.00020273,2]
[326561776,1715109073910,-1209.49,0.00020273,2]
[326561777,1715109073920,-500.0,0.00020273,2]
[326561778,1715109073931,-500.0,0.00020273,2]
[326561779,1715109073941,-624.93,0.00020273,2]
[326561780,1715109073951,-500.0,0.00020273,2]
[326561781,1715109073960,-443.18764668,0.00020273,2]
[326561782,1715109073970,-506.15,0.00020273,2]
[326561783,1715109073980,-1481.7,0.00020273,2]
[326561784,1715109073989,-500.0,0.00020273,2]
[326561785,1715109074000,-500.0,0.00020273,2]
[326561786,1715109074012,-500.0,0.00020273,2]
[326561787,1715109074023,-803.02,0.00020273,2]
[326561788,1715109074033,-1227.85,0.00020273,2]
[326561789,1715109074042,-541.87,0.00020273,2]
[326561790,1715109074053,-532.75,0.00020273,2]
[326561791,1715109074063,-1085.64,0.00020273,2]
[326561792,1715109074073,-563.22,0.00020273,2]
[326561793,1715109074083,-500.0,0.00020273,2]
[326561794,1715109074094,-1105.8,0.00020273,2]
[326561795,1715109074104,-500.0,0.00020273,2]
[326561796,1715109074115,-979.3,0.00020273,2]
[326561797,1715109074124,-5700.1,0.00020273,2]
[326561798,1715109074134,-500.0,0.00020273,2]
[326561799,1715109074145,-500.0,0.00020273,2]
[326561800,1715109074155,-1106.3,0.00020273,2]
[326561801,1715109074165,-500.0,0.00020273,2]
[326561802,1715109074176,-1297.44,0.00020273,2]
[326561803,1715109074186,-1432.86,0.00020273,2]
[326561804,1715109074196,-500.0,0.00020273,2]
[326561805,1715109074207,-1779.56,0.00020273,2]
[326561806,1715109074217,-500.0,0.00020273,2]
[326561807,1715109074227,-748.56,0.00020273,2]
[326561808,1715109074237,-4338.05,0.00020273,2]
[326561809,1715109074247,-500.0,0.00020273,2]
[326561810,1715109074258,-2714.86,0.00020273,2]
[326561811,1715109074267,-501.29,0.00020273,2]
[326561812,1715109074277,-500.0,0.00020273,2]
[326561813,1715109074287,-500.0,0.00020273,2]
[326561814,1715109074297,-2987.38,0.00020273,2]
[326561815,1715109074306,-1056.34,0.00020273,2]
[326561816,1715109074316,-1534.13,0.00020273,2]
[326561817,1715109074326,-896.06,0.00020273,2]
[326561818,1715109074335,-1535.14,0.00020273,2]
[326561819,1715109074346,-500.0,0.00020273,2]
[326561820,1715109074355,-500.0,0.00020273,2]